fUST/lending_fUST_20250824
["ID","MTS","AMOUNT","RATE_DAILY","PERIOD"]
[381097419,1756037432339,-247.88758424,0.00035439,24]
[381097420,1756037432348,-500.0,0.00035722,7]
[381097421,1756037432357,-155.0,0.000359,120]
[381097422,1756037432366,-500.0,0.00036174,7]
[381097423,1756037432376,-1174.694553,0.00036694,2]
[381097424,1756037432387,-724.86801381,0.00036809,7]
[381097425,1756037432396,-247.88758424,0.00037166,28]
[381097426,1756037432406,-153.0,0.00037537,30]
[381097427,1756037432414,-153.0,0.00037537,30]
[381097428,1756037432424,-153.0,0.00037537,30]
[381097429,1756037432433,-153.0,0.00037538,30]
[381097430,1756037432442,-153.0,0.00037538,30]
[381097431,1756037432452,-153.0,0.00037538,30]
[381097432,1756037432461,-153.0,0.00037538,30]
[381097433,1756037432470,-153.0,0.00037538,30]
[381097434,1756037432479,-153.0,0.00037538,30]
[381097435,1756037432488,-153.0,0.00037538,30]
[381097436,1756037432497,-153.0,0.00037538,30]
[381097437,1756037432507,-153.0,0.00037538,30]
[381097438,1756037432517,-153.0,0.00037538,30]
[381097439,1756037432527,-194.9625884,0.0003775,30]
[381097440,1756037432537,-266.0,0.00037781,2]
[381097441,1756037432555,-172.135094,0.00038105,2]
[381097442,1756037432567,-500.0,0.00038327,7]
[381097443,1756037432581,-500.0,0.00038354,7]
[381097444,1756037432600,-1000.0,0.00038356,15]
[381097445,1756037432610,-247.88758424,0.00038892,32]
[381097446,1756037432620,-500.0,0.00038987,7]
[381097447,1756037432629,-500.0,0.00039369,7]
[381097448,1756037432639,-500.0,0.00039656,7]
[381097449,1756037432649,-480.0,0.00039726,15]
[381097450,1756037432658,-150.0,0.00040081,2]
[381097451,1756037432668,-151.27661127,0.00040205,2]
[381097452,1756037432677,-247.88758424,0.00040619,36]
[381097453,1756037432687,-155.0,0.000407,120]
[381097454,1756037432696,-500.0,0.00041438,30]
[381097455,1756037432706,-500.0,0.00041811,30]
[381097456,1756037432715,-500.0,0.00042011,30]
[381097457,1756037432725,-247.88758424,0.00042345,39]
[381097458,1756037432734,-294.13730767,0.00043841,2]
[381097459,1756037432743,-247.88758424,0.00044072,43]
[381097460,1756037432753,-500.0,0.00044169,30]
[381097461,1756037432762,-408.0,0.00044368,2]
[381097463,1756037432771,-906.2234611,0.00044384,2]
[381097464,1756037432781,-3624.89384439,0.00044384,2]
[381097465,1756037432790,-168.94503545,0.00044384,2]
[381097466,1756037432800,-675.10436167,0.00044384,2]
[381097467,1756037432810,-500.0,0.00044409,30]
[381097468,1756037432819,-168.0,0.00044466,2]
[381097469,1756037432829,-500.0,0.00044534,30]
[381097470,1756037432839,-265.46867979,0.0004463,30]
[381097471,1756037432849,-219.21,0.00044858,2]
[381097472,1756037432858,-168.0,0.00045183,2]
[381097473,1756037432868,-168.0,0.00045481,2]
[381097474,1756037432877,-155.0,0.000456,120]
[381097475,1756037432887,-151.0,0.0004573,2]
[381097476,1756037432898,-151.0,0.0004573,2]
[381097477,1756037432907,-151.0,0.0004573,2]
[381097478,1756037432918,-152.256998,0.0004573,2]
[381097479,1756037432927,-247.88758424,0.00045798,47]
[381097480,1756037432937,-376.22310801,0.00045996,7]
[381097481,1756037432947,-160.0,0.00045997,7]
[381097482,1756037432956,-500.0,0.00045999,120]
[381097483,1756037432966,-489.60473379,0.00045999,7]
[381097484,1756037432994,-10.39526621,0.00045999,7]
[381097485,1756037433004,-500.0,0.00045999,7]
[381097486,1756037433015,-500.0,0.00045999,120]
[381097487,1756037433025,-182.5966283,0.00045999,7]
[381097488,1756037433036,-315.0,0.00045999,7]
[381097489,1756037433049,-500.0,0.00045999,120]
[381097490,1756037433060,-500.0,0.00045999,2]
[381097491,1756037433071,-171.36029635,0.00045999,120]
[381097492,1756037433083,-500.0,0.00045999,7]
[381097493,1756037433094,-500.0,0.00045999,7]
[381097494,1756037433104,-320.44081759,0.00045999,2]
[381097495,1756037433114,-500.0,0.00045999,120]
[381097496,1756037433126,-500.0,0.00045999,31]
[381097497,1756037433136,-500.0,0.00045999,7]
[381097498,1756037433147,-196.49809208,0.00045999,31]
[381097499,1756037433156,-500.0,0.00045999,120]
[381097500,1756037433166,-500.0,0.00045999,7]
[381097501,1756037433176,-500.0,0.00045999,7]
[381097502,1756037433186,-500.0,0.00045999,120]
[381097503,1756037433196,-295.9006203,0.00045999,120]
[381097504,1756037433207,-204.0993797,0.00045999,120]
[381097505,1756037433217,-500.0,0.00045999,7]
[381097506,1756037433227,-267.53758767,0.00045999,120]
[381097507,1756037433238,-232.46241233,0.00045999,120]
[381097508,1756037433249,-500.0,0.00045999,120]
[381097509,1756037433258,-500.0,0.00045999,7]
[381097510,1756037433269,-500.0,0.00045999,7]
[381097511,1756037433279,-215.99145658,0.00045999,7]
[381097512,1756037433290,-1479.09854539,0.00046,120]
[381097515,1756037437970,-12866.4572859,0.00046,120]
[381097516,1756037438034,-1353.1442974,0.00046,120]
[381097517,1756037438047,-12303.29201568,0.00046,120]
[381097518,1756037438079,-1374.81438009,0.00046,120]
[381097519,1756037438090,-1262.61347554,0.00046,120]
[381097521,1756037438101,-500.0,0.00046016,30]
[381097523,1756037438111,-5000.0,0.000465,120]
[381097525,1756037438120,-159.626916,0.00046738,7]
[381097527,1756037438131,-500.0,0.0004681,30]
[381097529,1756037438141,-500.0,0.00046979,30]
[381097531,1756037438151,-1175.37268147,0.00047128,2]
[381097533,1756037438161,-159.626916,0.00047329,20]
[381097535,1756037438170,-168.0,0.00047436,2]
[381097537,1756037438179,-247.88758424,0.00047525,50]
[381097538,1756037438188,-500.0,0.00047816,30]
[381097539,1756037438198,-168.0,0.00047869,2]
[381097540,1756037438207,-500.0,0.00048168,30]
[381097541,1756037438217,-5000.0,0.000485,120]
[381097542,1756037438227,-500.0,0.0004853,30]
[381097543,1756037438236,-159.626916,0.00048785,2]
[381097545,1756037438245,-579.61467734,0.00048989,120]
[381097547,1756037438254,-500.0,0.00048989,120]
[381097549,1756037438263,-54146.26577,0.0004899,4]
[381097551,1756037438272,-673.44980393,0.0004899,4]
[381097553,1756037438281,-1000.0,0.00049,120]
[381097555,1756037438290,-11926.6460914,0.00049,120]
[381097557,1756037438299,-700.0,0.0004904,60]
[381097559,1756037438308,-5000.0,0.000492,120]
[381097561,1756037438317,-247.88758424,0.00049251,54]
[381097563,1756037438326,-500.0,0.00049315,120]
[381097565,1756037438335,-500.0,0.00049315,120]
[381097567,1756037438344,-500.0,0.00049315,120]
[381097569,1756037438354,-500.0,0.00049315,120]
[381097571,1756037438363,-500.0,0.00049315,120]
[381097573,1756037438372,-500.0,0.00049315,120]
[381097575,1756037438382,-500.0,0.00049315,120]
[381097576,1756037438391,-157.29,0.00049315,120]
[381097578,1756037438400,-500.0,0.00049446,30]
[381097580,1756037438409,-500.0,0.00049451,30]
[381097582,1756037438418,-3610.25916464,0.000495,120]
[381097613,1756037440542,-199.0,0.000308,120]
[381097614,1756037440552,-1000.0,0.000486,120]
[381097615,1756037440561,-1389.74083536,0.000495,120]
[381097616,1756037440571,-5000.0,0.000495,120]
[381097617,1756037440580,-700.0,0.00049588,60]
[381097618,1756037440590,-5613.84685703,0.00049971,120]
[381097619,1756037440599,-1000.0,0.0005,120]
[381097620,1756037440608,-35102.5,0.0005,120]
[381097621,1756037440617,-700.0,0.00050136,60]
[381097622,1756037440627,-11902.082901,0.000502,120]
[381097623,1756037440636,-500.0,0.00050359,120]
[381097624,1756037440646,-155.0,0.000504,120]
[381097625,1756037440656,-54146.26577,0.0005049,4]
[381097626,1756037440666,-673.44980393,0.0005049,4]
[381097627,1756037440675,-5000.0,0.000505,120]
[381097628,1756037440685,-5000.0,0.000505,120]
[381097629,1756037440694,-10000.0,0.000505,120]
[381097630,1756037440704,-1094.25414988,0.00050537,10]
[381097631,1756037440714,-500.0,0.00050637,60]
[381097632,1756037440723,-700.0,0.00050684,60]
[381097633,1756037440732,-1000.0,0.00050684,120]
[381097634,1756037440742,-1000.0,0.00050684,120]
[381097635,1756037440751,-1000.0,0.00050684,120]
[381097636,1756037440760,-1000.0,0.00050684,120]
[381097637,1756037440770,-1000.0,0.00050684,120]
[381097638,1756037440780,-1000.0,0.00050684,120]
[381097639,1756037440789,-1000.0,0.00050684,120]
[381097640,1756037440799,-1000.0,0.00050684,120]
[381097641,1756037440808,-1000.0,0.00050684,120]
[381097642,1756037440818,-402.49134774,0.00050684,120]
[381097643,1756037440827,-500.0,0.00050684,120]
[381097644,1756037440836,-500.0,0.00050684,120]
[381097645,1756037440846,-500.0,0.00050684,120]
[381097646,1756037440856,-500.0,0.00050684,120]
[381097647,1756037440867,-500.0,0.00050684,120]
[381097648,1756037441089,-500.0,0.00050684,120]
[381097649,1756037441099,-464.99549541,0.00050684,120]
[381097650,1756037441108,-3781.32049017,0.000509,120]
[381097651,1756037441118,-247.88758424,0.00050978,58]
[381097652,1756037441128,-1000.0,0.00051,120]
[381097653,1756037441138,-500.0,0.00051009,60]
[381097654,1756037441147,-5000.0,0.000512,120]
[381097655,1756037441156,-376.22310801,0.0005121,2]
[381097656,1756037441166,-700.0,0.00051232,60]
[381097657,1756037441175,-1094.25414986,0.00051246,10]
[381097658,1756037441185,-694.86505878,0.00051364,60]
[381097659,1756037441195,-150.0,0.000514,23]
[381097660,1756037441204,-151.0,0.000515,29]
[381097661,1756037441214,-447.6054018,0.00051507,30]
[381097662,1756037441224,-480.4621638,0.00051507,30]
[381097663,1756037441234,-500.0,0.00051729,120]
[381097664,1756037441243,-301.6841018,0.00051753,30]
[381097665,1756037441252,-153.0,0.00051781,30]
[381097666,1756037441261,-294.186276,0.00051781,30]
[381097667,1756037441271,-153.0,0.00051781,30]
[381097668,1756037441280,-321.8774329,0.00051781,30]
[381097669,1756037441290,-294.186276,0.00051781,30]
[381097670,1756037441299,-153.0,0.00051781,30]
[381097671,1756037441309,-401.0,0.0005179,86]
[381097672,1756037441320,-151.0,0.000518,29]
[381097673,1756037441329,-800.0,0.00051835,30]
[381097674,1756037441338,-49923.34217993,0.00051844,120]
[381097675,1756037441347,-49999.999999,0.0005188,120]
[381097676,1756037441357,-50000.0,0.0005188,30]
[381097677,1756037441367,-46831.72826546,0.0005188,60]
[381097678,1756037441376,-50000.0,0.0005188,40]
[381097679,1756037441386,-800.0,0.00051887,30]
[381097680,1756037441395,-151.0,0.000519,30]
[381097681,1756037441406,-54146.26577,0.00051924,4]
[381097682,1756037441415,-673.44980393,0.00051924,4]
[381097683,1756037441424,-162438.79731,0.00051934,4]
[381097684,1756037441434,-5387.59843144,0.00051934,4]
[381097685,1756037441443,-207.0,0.0005194,30]
[381097686,1756037441453,-500.0,0.0005194,60]
[381097687,1756037441462,-370000.0,0.00051944,2]
[381097688,1756037441472,-188.23,0.00051944,120]
[381097689,1756037441481,-219.60794177,0.00051944,120]
[381097690,1756037441490,-298.34,0.00051944,120]
[381097691,1756037441500,-174.03410411,0.00051944,120]
[381097692,1756037441509,-174.03410411,0.00051944,120]
[381097693,1756037441521,-174.03410411,0.00051944,120]
[381097694,1756037441532,-673.44980393,0.00051944,4]
[381097695,1756037441541,-1000.0,0.00051954,2]
[381097696,1756037441551,-219.6,0.00051954,120]
[381097697,1756037441561,-174.03,0.00051954,120]
[381097698,1756037441571,-9917.95055865,0.00051954,2]
[381097699,1756037441580,-167.68597059,0.00051954,120]
[381097700,1756037441589,-501.59994787,0.00051973,2]
[381097701,1756037441598,-500.0,0.00051973,10]
[381097702,1756037441608,-500.0,0.00051973,10]
[381097703,1756037441618,-151.0,0.00052,28]
[381097704,1756037441628,-4232.57188787,0.00052,120]
[381097705,1756037441637,-151.0,0.00052,26]
[381097706,1756037441647,-151.0,0.00052,29]
[381097707,1756037441657,-151.0,0.00052,22]
[381097708,1756037441667,-151.0,0.00052,23]
[381097709,1756037441676,-151.0,0.00052,24]
[381097710,1756037441686,-151.0,0.00052,30]
[381097711,1756037441695,-151.0,0.00052,22]
[381097712,1756037441704,-151.0,0.00052,23]
[381097713,1756037441714,-151.0,0.00052,22]
[381097714,1756037441723,-395.65,0.00052,7]
[381097715,1756037441733,-11497.94,0.00052,14]
[381097716,1756037441742,-2000.0,0.00052,54]
[381097717,1756037441751,-150.0,0.00052,120]
[381097718,1756037441760,-164.0,0.00052,120]
[381097719,1756037441770,-215.99145658,0.00052,30]
[381097720,1756037441779,-163.0,0.00052,120]
[381097721,1756037441789,-544.97925448,0.00052002,2]
[381097722,1756037441798,-673.44980393,0.00052034,4]
[381097723,1756037441807,-4714.14862751,0.00052044,4]
[381097724,1756037441817,-207.0,0.0005205,30]
[381097725,1756037441826,-8961.99152649,0.00052053,120]
[381097726,1756037441836,-209.40437685,0.00052053,120]
[381097727,1756037441845,-161.88064886,0.00052053,120]
[381097728,1756037441854,-250.0,0.00052053,120]
[381097729,1756037441864,-250.0,0.00052053,120]
[381097730,1756037441873,-250.0,0.00052053,120]
[381097731,1756037441882,-250.0,0.00052053,120]
[381097732,1756037441891,-275.21884075,0.00052053,120]
[381097733,1756037441900,-1000.0,0.00052053,60]
[381097734,1756037441910,-2593.82338222,0.00052053,60]
[381097735,1756037441920,-1500.0,0.00052053,60]
[381097736,1756037441929,-2000.0,0.00052053,60]
[381097737,1756037441940,-480.0,0.00052054,120]
[381097738,1756037441955,-480.0,0.00052054,120]
[381097739,1756037441964,-480.0,0.00052054,30]
[381097740,1756037441974,-480.0,0.00052054,120]
[381097741,1756037441983,-480.0,0.00052054,120]
[381097742,1756037441993,-480.0,0.00052054,120]
[381097743,1756037442002,-480.0,0.00052054,120]
[381097744,1756037442012,-500.0,0.00052054,2]
[381097745,1756037442021,-500.0,0.00052054,2]
[381097746,1756037442032,-500.0,0.00052054,2]
[381097747,1756037442042,-500.0,0.00052054,2]
[381097748,1756037442056,-500.0,0.00052054,2]
[381097749,1756037442066,-500.0,0.00052054,2]
[381097750,1756037442075,-500.0,0.00052054,2]
[381097751,1756037442085,-649.55345583,0.00052054,2]
[381097752,1756037442094,-480.0,0.00052054,120]
[381097753,1756037442104,-480.0,0.00052054,120]
[381097754,1756037442113,-480.0,0.00052054,120]
[381097755,1756037442125,-480.0,0.00052054,120]
[381097756,1756037442134,-480.0,0.00052054,120]
[381097757,1756037442143,-480.0,0.00052054,120]
[381097758,1756037442153,-480.0,0.00052054,120]
[381097759,1756037442163,-480.0,0.00052054,120]
[381097760,1756037442173,-480.0,0.00052054,120]
[381097761,1756037442183,-480.0,0.00052054,120]
[381097762,1756037442193,-480.0,0.00052054,120]
[381097763,1756037442202,-480.0,0.00052054,120]
[381097764,1756037442212,-480.0,0.00052054,120]
[381097765,1756037442221,-552.46,0.00052054,120]
[381097766,1756037442231,-338.82,0.00052054,120]
[381097767,1756037442241,-480.0,0.00052054,120]
[381097768,1756037442250,-480.0,0.00052054,120]
[381097769,1756037442259,-326.0,0.00052054,30]
[381097770,1756037442268,-326.0,0.00052054,30]
[381097771,1756037442278,-326.0,0.00052054,30]
[381097772,1756037442287,-326.0,0.00052054,30]
[381097773,1756037442299,-326.0,0.00052054,30]
[381097774,1756037442308,-326.0,0.00052054,30]
[381097775,1756037442317,-326.0,0.00052054,30]
[381097776,1756037442326,-480.0,0.00052054,120]
[381097777,1756037442335,-326.0,0.00052054,30]
[381097778,1756037442344,-239.43245315,0.00052054,120]
[381097779,1756037442354,-326.0,0.00052054,30]
[381097780,1756037442363,-326.0,0.00052054,30]
[381097781,1756037442372,-326.0,0.00052054,30]
[381097782,1756037442381,-326.0,0.00052054,30]
[381097783,1756037442390,-326.0,0.00052054,30]
[381097784,1756037442401,-480.0,0.00052054,120]
[381097785,1756037442410,-326.0,0.00052054,30]
[381097786,1756037442419,-480.0,0.00052054,120]
[381097787,1756037442428,-326.0,0.00052054,30]
[381097788,1756037442437,-326.0,0.00052054,30]
[381097789,1756037442447,-326.0,0.00052054,30]
[381097790,1756037442457,-326.0,0.00052054,30]
[381097791,1756037442467,-326.0,0.00052054,30]
[381097792,1756037442476,-326.0,0.00052054,30]
[381097793,1756037442486,-156.85382725,0.00052054,30]
[381097794,1756037442496,-309.62786738,0.00052054,120]
[381097795,1756037442505,-480.0,0.00052054,120]
[381097796,1756037442515,-480.0,0.00052054,120]
[381097797,1756037442525,-480.0,0.00052054,120]
[381097798,1756037442535,-851.96,0.00052054,120]
[381097799,1756037442544,-480.0,0.00052054,120]
[381097800,1756037442554,-936.69,0.00052054,120]
[381097801,1756037442564,-480.0,0.00052054,120]
[381097802,1756037442574,-970.56,0.00052054,120]
[381097803,1756037442584,-480.0,0.00052054,120]
[381097804,1756037442595,-480.0,0.00052054,120]
[381097805,1756037442605,-770.39,0.00052054,120]
[381097806,1756037442615,-480.0,0.00052054,120]
[381097807,1756037442624,-480.0,0.00052054,120]
[381097808,1756037442633,-480.0,0.00052054,120]
[381097810,1756037442643,-480.0,0.00052054,120]
[381097812,1756037442653,-480.0,0.00052054,120]
[381097814,1756037442662,-480.0,0.00052054,120]
[381097815,1756037442672,-863.5,0.00052054,120]
[381097816,1756037442682,-480.0,0.00052054,120]
[381097817,1756037442692,-480.0,0.00052054,120]
[381097818,1756037442701,-480.0,0.00052054,120]
[381097819,1756037442710,-2544.5,0.00052054,120]
[381097820,1756037442719,-480.0,0.00052054,120]
[381097821,1756037442729,-480.0,0.00052054,120]
[381097822,1756037442738,-896.04,0.00052054,120]
[381097823,1756037442747,-480.0,0.00052054,120]
[381097825,1756037442757,-480.0,0.00052054,120]
[381097826,1756037442766,-480.0,0.00052054,120]
[381097827,1756037442776,-480.0,0.00052054,120]
[381097828,1756037442785,-151.0,0.00052054,120]
[381097829,1756037442795,-151.0,0.00052054,120]
[381097830,1756037442804,-480.0,0.00052054,120]
[381097831,1756037442813,-151.0,0.00052054,120]
[381097832,1756037442822,-480.0,0.00052054,120]
[381097833,1756037442832,-165.496,0.00052054,120]
[381097834,1756037442842,-151.0,0.00052054,120]
[381097835,1756037442853,-151.0,0.00052054,120]
[381097836,1756037442862,-480.0,0.00052054,120]
[381097837,1756037442872,-151.452376,0.00052054,120]
[381097838,1756037442882,-480.0,0.00052054,120]
[381097839,1756037442891,-480.0,0.00052054,120]
[381097840,1756037442900,-480.0,0.00052054,120]
[381097841,1756037442909,-151.0,0.00052054,120]
[381097842,1756037442919,-152.649123,0.00052054,120]
[381097843,1756037442928,-703.49,0.00052054,120]
[381097844,1756037442938,-593.31,0.00052054,7]
[381097845,1756037442947,-480.0,0.00052054,120]
[381097846,1756037442956,-480.0,0.00052054,120]
[381097847,1756037442966,-556.4121092,0.00052054,120]
[381097848,1756037442975,-617.0008143,0.00052054,120]
[381097849,1756037442984,-480.0,0.00052054,120]
[381097850,1756037442994,-480.0,0.00052054,120]
[381097851,1756037443003,-480.0,0.00052054,120]
[381097852,1756037443012,-480.0,0.00052054,120]
[381097853,1756037443021,-480.0,0.00052054,120]
[381097854,1756037443031,-480.0,0.00052054,120]
[381097855,1756037443040,-480.0,0.00052054,120]
[381097856,1756037443055,-500.0,0.00052054,120]
[381097857,1756037443064,-500.0,0.00052054,120]
[381097858,1756037443073,-500.0,0.00052054,120]
[381097859,1756037443082,-480.0,0.00052054,120]
[381097860,1756037443094,-297.60965015,0.00052054,120]
[381097861,1756037443103,-500.95913686,0.00052054,120]
[381097862,1756037443112,-462.38456494,0.00052054,120]
[381097863,1756037443123,-480.0,0.00052054,120]
[381097864,1756037443133,-480.0,0.00052054,120]
[381097865,1756037443144,-480.0,0.00052054,120]
[381097866,1756037443153,-480.0,0.00052054,120]
[381097867,1756037443163,-480.0,0.00052054,120]
[381097868,1756037443172,-480.0,0.00052054,120]
[381097869,1756037443181,-480.0,0.00052054,120]
[381097870,1756037443191,-480.0,0.00052054,120]
[381097871,1756037443200,-940.68,0.00052054,120]
[381097872,1756037443209,-480.0,0.00052054,120]
[381097873,1756037443219,-480.0,0.00052054,120]
[381097874,1756037443229,-480.0,0.00052054,120]
[381097875,1756037443432,-480.0,0.00052054,120]
[381097876,1756037443442,-630.26,0.00052054,120]
[381097877,1756037443452,-480.0,0.00052054,120]
[381097878,1756037443461,-480.0,0.00052054,120]
[381097879,1756037443471,-480.0,0.00052054,120]
[381097880,1756037443481,-3046.9741014,0.00052054,2]
[381097881,1756037443490,-841.07,0.00052054,120]
[381097882,1756037443499,-2186.96,0.00052054,120]
[381097883,1756037443509,-480.0,0.00052054,5]
[381097884,1756037443519,-480.0,0.00052054,120]
[381097885,1756037443529,-480.0,0.00052054,120]
[381097886,1756037443539,-480.0,0.00052054,120]
[381097887,1756037443549,-480.0,0.00052054,120]
[381097888,1756037443559,-480.0,0.00052054,120]
[381097889,1756037443569,-480.0,0.00052054,120]
[381097890,1756037443578,-480.0,0.00052054,120]
[381097891,1756037443587,-480.0,0.00052054,120]
[381097892,1756037443597,-603.04,0.00052054,120]
[381097893,1756037443606,-480.0,0.00052054,120]
[381097894,1756037443616,-480.0,0.00052054,120]
[381097895,1756037443625,-580.1683861,0.00052054,120]
[381097896,1756037443636,-480.0,0.00052054,20]
[381097897,1756037443645,-480.0,0.00052054,120]
[381097898,1756037443655,-151.0,0.00052054,120]
[381097899,1756037443664,-480.0,0.00052054,120]
[381097900,1756037443673,-151.0,0.00052054,120]
[381097901,1756037443682,-835.15,0.00052054,120]
[381097902,1756037443691,-151.0,0.00052054,120]
[381097903,1756037443700,-480.0,0.00052054,120]
[381097904,1756037443710,-480.0,0.00052054,120]
[381097905,1756037443719,-480.0,0.00052054,120]
[381097906,1756037443729,-480.0,0.00052054,120]
[381097907,1756037443739,-500.0,0.00052054,120]
[381097908,1756037443749,-500.0,0.00052054,120]
[381097909,1756037443759,-500.0,0.00052054,120]
[381097910,1756037443768,-500.0,0.00052054,120]
[381097911,1756037443778,-500.0,0.00052054,120]
[381097912,1756037443787,-500.0,0.00052054,120]
[381097913,1756037443797,-500.0,0.00052054,120]
[381097914,1756037443807,-500.0,0.00052054,120]
[381097915,1756037443816,-500.0,0.00052054,120]
[381097916,1756037443826,-500.0,0.00052054,120]
[381097917,1756037443835,-500.0,0.00052054,120]
[381097918,1756037443845,-500.0,0.00052054,120]
[381097919,1756037443854,-500.0,0.00052054,120]
[381097920,1756037443863,-500.0,0.00052054,120]
[381097921,1756037443872,-500.0,0.00052054,120]
[381097922,1756037443882,-151.0,0.00052054,120]
[381097923,1756037443892,-500.0,0.00052054,120]
[381097924,1756037443902,-480.0,0.00052054,120]
[381097925,1756037443911,-500.0,0.00052054,120]
[381097926,1756037443921,-151.0,0.00052054,120]
[381097927,1756037443931,-500.0,0.00052054,120]
[381097928,1756037443940,-640.83210886,0.00052054,120]
[381097929,1756037443949,-151.0,0.00052054,120]
[381097930,1756037443959,-480.0,0.00052054,120]
[381097931,1756037443968,-151.0,0.00052054,120]
[381097932,1756037443978,-151.0,0.00052054,120]
[381097933,1756037443988,-151.0,0.00052054,120]
[381097934,1756037443997,-480.0,0.00052054,120]
[381097935,1756037444006,-151.0,0.00052054,120]
[381097936,1756037444016,-786.02,0.00052054,120]
[381097937,1756037444025,-151.0,0.00052054,120]
[381097938,1756037444034,-151.0,0.00052054,120]
[381097939,1756037444048,-151.0,0.00052054,120]
[381097940,1756037444057,-500.0,0.00052054,120]
[381097941,1756037444067,-500.0,0.00052054,120]
[381097942,1756037444076,-500.0,0.00052054,120]
[381097943,1756037444087,-500.0,0.00052054,120]
[381097944,1756037444096,-500.0,0.00052054,120]
[381097945,1756037444105,-608.11,0.00052054,120]
[381097946,1756037444115,-500.0,0.00052054,120]
[381097947,1756037444126,-500.0,0.00052054,120]
[381097948,1756037444135,-500.0,0.00052054,120]
[381097949,1756037444145,-500.0,0.00052054,120]
[381097950,1756037444154,-500.0,0.00052054,120]
[381097951,1756037444164,-500.0,0.00052054,120]
[381097952,1756037444174,-500.0,0.00052054,120]
[381097953,1756037444186,-325.06564611,0.00052054,120]
[381097954,1756037444195,-653.61,0.00052054,120]
[381097955,1756037444205,-970.91,0.00052054,120]
[381097956,1756037444214,-568.54,0.00052054,14]
[381097957,1756037444224,-460.37447384,0.00052054,120]
[381097958,1756037444234,-151.0,0.00052054,120]
[381097959,1756037444243,-480.0,0.00052054,120]
[381097960,1756037444253,-160.0,0.00052054,3]
[381097961,1756037444262,-220.92784036,0.00052054,5]
[381097962,1756037444272,-480.0,0.00052054,120]
[381097963,1756037444281,-480.0,0.00052054,120]
[381097964,1756037444291,-480.0,0.00052054,120]
[381097965,1756037444301,-480.0,0.00052054,120]
[381097966,1756037444310,-480.0,0.00052054,120]
[381097967,1756037444319,-480.0,0.00052054,120]
[381097968,1756037444329,-480.0,0.00052054,120]
[381097969,1756037444338,-480.0,0.00052054,120]
[381097970,1756037444348,-480.0,0.00052054,120]
[381097971,1756037444357,-480.0,0.00052054,120]
[381097972,1756037444366,-480.0,0.00052054,120]
[381097973,1756037444376,-480.0,0.00052054,120]
[381097974,1756037444385,-480.0,0.00052054,120]
[381097975,1756037444395,-480.0,0.00052054,120]
[381097976,1756037444404,-480.0,0.00052054,120]
[381097977,1756037444413,-480.0,0.00052054,120]
[381097978,1756037444423,-480.0,0.00052054,120]
[381097979,1756037444433,-480.0,0.00052054,120]
[381097980,1756037444442,-791.71,0.00052054,120]
[381097981,1756037444451,-480.0,0.00052054,120]
[381097982,1756037444460,-480.0,0.00052054,120]
[381097983,1756037444470,-897.7,0.00052054,120]